[Event "Titled Tuesday Blitz August 1 Early 2023"]
[White "Putri, Regita Desyari"]
[Black "Ventura Bolet, Maxim"]
[WhiteFideId "7109083"]
[BlackFideId "22238824"]
[WhiteElo "2230"]
[BlackElo "2433"]
[Result "0-1"]
[Round "3"]
[TimeControl "180+1"]
[Date "2023.08.01"]
[WhiteClock "0:00:19"]
[BlackClock "0:00:55"]
[Board "196"]

1. d4 {[%clk 0:03:00]}  d5 {[%clk 0:02:58]} 2. c4 {[%clk 0:02:59]}  dxc4 {[%clk 0:02:59]} 3. e3 {[%clk 0:02:59]}  Nf6 {[%clk 0:02:57]} 4. Bxc4 {[%clk 0:02:58]}  e6 {[%clk 0:02:58]} 5. Nf3 {[%clk 0:02:58]}  a6 {[%clk 0:02:58]} 6. a4 {[%clk 0:02:52]}  Nc6 {[%clk 0:02:54]} 7. O-O {[%clk 0:02:52]}  Bd6 {[%clk 0:02:53]} 8. Nc3 {[%clk 0:02:44]}  O-O {[%clk 0:02:53]} 9. e4 {[%clk 0:02:37]}  e5 {[%clk 0:02:47]} 10. d5 {[%clk 0:02:14]}  Ne7 {[%clk 0:02:45]} 11. Bg5 {[%clk 0:02:08]}  Ng6 {[%clk 0:02:45]} 12. h3 {[%clk 0:02:08]}  h6 {[%clk 0:02:44]} 13. Be3 {[%clk 0:02:08]}  Nh7 {[%clk 0:02:36]} 14. Bd3 {[%clk 0:02:00]}  Bd7 {[%clk 0:02:24]} 15. a5 {[%clk 0:01:52]}  Qe7 {[%clk 0:02:24]} 16. Qc2 {[%clk 0:01:44]}  Ng5 {[%clk 0:02:19]} 17. Nxg5 {[%clk 0:01:42]}  hxg5 {[%clk 0:02:18]} 18. Rfd1 {[%clk 0:01:09]}  Nf4 {[%clk 0:02:17]} 19. Bf1 {[%clk 0:01:10]}  g6 {[%clk 0:02:13]} 20. Kh2 {[%clk 0:01:05]}  Kg7 {[%clk 0:02:12]} 21. Bxf4 {[%clk 0:00:52]}  gxf4 {[%clk 0:02:05]} 22. f3 {[%clk 0:00:53]}  Qh4 {[%clk 0:01:57]} 23. Ne2 {[%clk 0:00:50]}  Bb5 {[%clk 0:01:43]} 24. Qd2 {[%clk 0:00:50]}  Bc5 {[%clk 0:01:39]} 25. Rac1 {[%clk 0:00:42]}  Be3 {[%clk 0:01:31]} 26. Qe1 {[%clk 0:00:43]}  Bf2 {[%clk 0:01:30]} 27. Qc3 {[%clk 0:00:39]}  Rae8 {[%clk 0:01:04]} 28. Rc2 {[%clk 0:00:17]}  Rh8 {[%clk 0:01:00]} 29. Qxc7 {[%clk 0:00:17]}  Bxe2 {[%clk 0:00:55]} 30. Rxe2 {[%clk 0:00:18]}  Qg3+ {[%clk 0:00:55]} 31. Kh1 {[%clk 0:00:18]}  Rxh3+ {[%clk 0:00:55]} 32. gxh3 {[%clk 0:00:19]}  Qg1# {[%clk 0:00:55]} 0-1


[Site "https://www.chess.com"]

[Event "Titled Tuesday Blitz August 1 Early 2023"]
[White "Bouget, Alexandre"]
[Black "cycygogne"]
[WhiteFideId "681318"]
[WhiteElo "2410"]
[BlackElo "2154"]
[Result "1-0"]
[Round "3"]
[TimeControl "180+1"]
[Date "2023.08.01"]
[WhiteClock "0:00:32"]
[BlackClock "0:00:23"]
[Board "199"]

1. d4 {[%clk 0:02:53]}  Nf6 {[%clk 0:02:57]} 2. c4 {[%clk 0:02:51]}  c5 {[%clk 0:02:57]} 3. d5 {[%clk 0:02:51]}  e6 {[%clk 0:02:57]} 4. Nc3 {[%clk 0:02:50]}  exd5 {[%clk 0:02:57]} 5. cxd5 {[%clk 0:02:51]}  d6 {[%clk 0:02:58]} 6. e4 {[%clk 0:02:51]}  g6 {[%clk 0:02:58]} 7. f4 {[%clk 0:02:52]}  Bg7 {[%clk 0:02:57]} 8. e5 {[%clk 0:02:53]}  dxe5 {[%clk 0:02:57]} 9. fxe5 {[%clk 0:02:51]}  Ng4 {[%clk 0:02:51]} 10. e6 {[%clk 0:02:49]}  O-O {[%clk 0:02:43]} 11. Qxg4 {[%clk 0:02:47]}  fxe6 {[%clk 0:02:43]} 12. Bg5 {[%clk 0:02:32]}  Qa5 {[%clk 0:02:20]} 13. Qc4 {[%clk 0:02:31]}  b5 {[%clk 0:02:06]} 14. Qxc5 {[%clk 0:02:19]}  Na6 {[%clk 0:01:59]} 15. Qe3 {[%clk 0:02:04]}  Nb4 {[%clk 0:01:40]} 16. Qd2 {[%clk 0:01:56]}  Bb7 {[%clk 0:01:15]} 17. Nf3 {[%clk 0:01:48]}  exd5 {[%clk 0:01:14]} 18. Be2 {[%clk 0:01:47]}  d4 {[%clk 0:01:08]} 19. Nxb5 {[%clk 0:01:16]}  Nc2+ {[%clk 0:01:00]} 20. Kf2 {[%clk 0:01:15]}  Qxd2 {[%clk 0:00:51]} 21. Bxd2 {[%clk 0:01:16]}  Nxa1 {[%clk 0:00:40]} 22. Rxa1 {[%clk 0:01:17]}  Rac8 {[%clk 0:00:37]} 23. Nd6 {[%clk 0:01:15]}  Rc2 {[%clk 0:00:34]} 24. Rd1 {[%clk 0:00:49]}  Bxf3 {[%clk 0:00:29]} 25. Bxf3 {[%clk 0:00:46]}  Rxb2 {[%clk 0:00:30]} 26. Kg1 {[%clk 0:00:39]}  Rd8 {[%clk 0:00:28]} 27. Bf4 {[%clk 0:00:37]}  g5 {[%clk 0:00:26]} 28. Bd5+ {[%clk 0:00:34]}  Kf8 {[%clk 0:00:26]} 29. Bg3 {[%clk 0:00:35]}  h5 {[%clk 0:00:26]} 30. h3 {[%clk 0:00:31]}  h4 {[%clk 0:00:23]} 31. Rf1+ {[%clk 0:00:32]}  Ke7 {[%clk 0:00:23]} 32. Rf7# {[%clk 0:00:32]} 1-0


[Site "https://www.chess.com"]

[Event "Titled Tuesday Blitz August 1 Early 2023"]
[White "ilya2700"]
[Black "Csonka, Balazs"]
[BlackFideId "742910"]
[WhiteElo "2043"]
[BlackElo "2717"]
[Result "0-1"]
[Round "3"]
[TimeControl "180+1"]
[Date "2023.08.01"]
[WhiteClock "0:00:06"]
[BlackClock "0:00:17"]
[Board "201"]

1. e4 {[%clk 0:03:00]}  e5 {[%clk 0:02:58]} 2. Nf3 {[%clk 0:02:59]}  Nc6 {[%clk 0:02:56]} 3. Bc4 {[%clk 0:02:59]}  Nf6 {[%clk 0:02:54]} 4. Nc3 {[%clk 0:02:59]}  Nxe4 {[%clk 0:02:51]} 5. Nxe4 {[%clk 0:02:55]}  d5 {[%clk 0:02:51]} 6. Bd3 {[%clk 0:02:56]}  dxe4 {[%clk 0:02:39]} 7. Bxe4 {[%clk 0:02:57]}  Bd6 {[%clk 0:02:40]} 8. O-O {[%clk 0:02:56]}  O-O {[%clk 0:02:40]} 9. b3 {[%clk 0:02:50]}  f5 {[%clk 0:02:39]} 10. Bd5+ {[%clk 0:02:49]}  Kh8 {[%clk 0:02:39]} 11. Bb2 {[%clk 0:02:49]}  e4 {[%clk 0:02:36]} 12. Bxc6 {[%clk 0:02:43]}  bxc6 {[%clk 0:02:27]} 13. Ne5 {[%clk 0:02:37]}  Qh4 {[%clk 0:02:23]} 14. f4 {[%clk 0:02:33]}  Ba6 {[%clk 0:02:02]} 15. c4 {[%clk 0:02:31]}  Rae8 {[%clk 0:01:45]} 16. Qe1 {[%clk 0:02:11]}  Qxe1 {[%clk 0:01:17]} 17. Raxe1 {[%clk 0:02:11]}  Rd8 {[%clk 0:01:08]} 18. Nxc6 {[%clk 0:02:06]}  Bc5+ {[%clk 0:01:07]} 19. Kh1 {[%clk 0:01:48]}  Rxd2 {[%clk 0:01:06]} 20. Be5 {[%clk 0:01:39]}  Bb7 {[%clk 0:00:56]} 21. b4 {[%clk 0:01:25]}  Bf2 {[%clk 0:00:51]} 22. Na5 {[%clk 0:01:10]}  Ba8 {[%clk 0:00:36]} 23. Rd1 {[%clk 0:01:06]}  Rxd1 {[%clk 0:00:31]} 24. Rxd1 {[%clk 0:01:07]}  e3 {[%clk 0:00:29]} 25. Bc3 {[%clk 0:00:56]}  e2 {[%clk 0:00:28]} 26. Re1 {[%clk 0:00:44]}  Rd8 {[%clk 0:00:18]} 27. Rxe2 {[%clk 0:00:20]}  Rd1+ {[%clk 0:00:18]} 28. Be1 {[%clk 0:00:19]}  Rxe1+ {[%clk 0:00:17]} 29. Rxe1 {[%clk 0:00:19]}  Bxe1 {[%clk 0:00:18]} 30. a3 {[%clk 0:00:17]}  c5 {[%clk 0:00:19]} 31. Kg1 {[%clk 0:00:15]}  cxb4 {[%clk 0:00:18]} 32. c5 {[%clk 0:00:13]}  bxa3 {[%clk 0:00:17]} 33. Nc4 {[%clk 0:00:06]}  a2 {[%clk 0:00:17]} 0-1


[Site "https://www.chess.com"]

[Event "Titled Tuesday Blitz August 1 Early 2023"]
[White "Fajdetic, Hrvoje"]
[Black "Lizak, Peter"]
[WhiteFideId "14501945"]
[BlackFideId "731595"]
[WhiteElo "2316"]
[BlackElo "2612"]
[Result "0-1"]
[Round "3"]
[TimeControl "180+1"]
[Date "2023.08.01"]
[WhiteClock "0:00:08"]
[BlackClock "0:00:16"]
[Board "204"]

1. d4 {[%clk 0:02:53]}  Nf6 {[%clk 0:02:59]} 2. Bf4 {[%clk 0:02:53]}  c5 {[%clk 0:03:00]} 3. e3 {[%clk 0:02:51]}  d5 {[%clk 0:03:00]} 4. Nc3 {[%clk 0:02:51]}  cxd4 {[%clk 0:02:51]} 5. exd4 {[%clk 0:02:52]}  a6 {[%clk 0:02:52]} 6. Bd3 {[%clk 0:02:50]}  Nc6 {[%clk 0:02:52]} 7. Nce2 {[%clk 0:02:51]}  Bg4 {[%clk 0:02:50]} 8. c3 {[%clk 0:02:50]}  e6 {[%clk 0:02:50]} 9. Qb3 {[%clk 0:02:49]}  Qc8 {[%clk 0:02:44]} 10. h4 {[%clk 0:02:40]}  Be7 {[%clk 0:02:39]} 11. Ng3 {[%clk 0:02:39]}  Nh5 {[%clk 0:02:36]} 12. f3 {[%clk 0:02:34]}  Nxf4 {[%clk 0:02:35]} 13. Bf1 {[%clk 0:02:33]}  Bf5 {[%clk 0:02:31]} 14. Nxf5 {[%clk 0:02:30]}  exf5 {[%clk 0:02:31]} 15. g3 {[%clk 0:02:30]}  Ne6 {[%clk 0:02:29]} 16. Qxd5 {[%clk 0:02:30]}  O-O {[%clk 0:02:28]} 17. Qxf5 {[%clk 0:02:30]}  Bd6 {[%clk 0:02:23]} 18. Kf2 {[%clk 0:02:27]}  g6 {[%clk 0:02:21]} 19. Qh3 {[%clk 0:02:20]}  h5 {[%clk 0:02:19]} 20. d5 {[%clk 0:02:19]}  Bc5+ {[%clk 0:02:09]} 21. Kg2 {[%clk 0:02:19]}  f5 {[%clk 0:01:40]} 22. dxe6 {[%clk 0:01:56]}  Qxe6 {[%clk 0:01:37]} 23. Kh2 {[%clk 0:01:32]}  Rad8 {[%clk 0:01:36]} 24. Qg2 {[%clk 0:01:28]}  f4 {[%clk 0:01:34]} 25. g4 {[%clk 0:01:23]}  Kh8 {[%clk 0:01:27]} 26. Nh3 {[%clk 0:01:19]}  Be3 {[%clk 0:01:27]} 27. Re1 {[%clk 0:01:16]}  Qf6 {[%clk 0:01:21]} 28. Ng5 {[%clk 0:01:09]}  Rd2 {[%clk 0:01:17]} 29. Re2 {[%clk 0:01:08]}  Rfd8 {[%clk 0:01:17]} 30. Ne4 {[%clk 0:01:04]}  Qxh4+ {[%clk 0:01:16]} 31. Qh3 {[%clk 0:01:00]}  Qxh3+ {[%clk 0:00:58]} 32. Kxh3 {[%clk 0:00:55]}  Rxe2 {[%clk 0:00:58]} 33. Bxe2 {[%clk 0:00:54]}  hxg4+ {[%clk 0:00:58]} 34. Kxg4+ {[%clk 0:00:52]}  Kg7 {[%clk 0:00:59]} 35. Ng5 {[%clk 0:00:46]}  Ne5+ {[%clk 0:00:56]} 36. Kh3 {[%clk 0:00:42]}  Rd2 {[%clk 0:00:55]} 37. Rh2 {[%clk 0:00:29]}  Rxb2 {[%clk 0:00:50]} 38. Ne6+ {[%clk 0:00:18]}  Kf6 {[%clk 0:00:49]} 39. Nd8 {[%clk 0:00:18]}  g5 {[%clk 0:00:42]} 40. a4 {[%clk 0:00:16]}  Bb6 {[%clk 0:00:19]} 41. Nxb7 {[%clk 0:00:15]}  Bg1 {[%clk 0:00:19]} 42. Rg2 {[%clk 0:00:14]}  Rxb7 {[%clk 0:00:17]} 43. Rxg1 {[%clk 0:00:14]}  Rb2 {[%clk 0:00:17]} 44. Rg2 {[%clk 0:00:12]}  Rc2 {[%clk 0:00:16]} 45. c4 {[%clk 0:00:12]}  Rc3 {[%clk 0:00:16]} 46. Rf2 {[%clk 0:00:11]}  Rc2 {[%clk 0:00:15]} 47. c5 {[%clk 0:00:09]}  Rc3 {[%clk 0:00:16]} 48. Bxa6 {[%clk 0:00:09]}  g4+ {[%clk 0:00:16]} 49. Kh4 {[%clk 0:00:09]}  g3 {[%clk 0:00:17]} 50. Rf1 {[%clk 0:00:09]}  g2 {[%clk 0:00:14]} 51. Rg1 {[%clk 0:00:09]}  Nxf3+ {[%clk 0:00:14]} 52. Kh3 {[%clk 0:00:09]}  Nxg1+ {[%clk 0:00:14]} 53. Kxg2 {[%clk 0:00:10]}  Nf3 {[%clk 0:00:13]} 54. c6 {[%clk 0:00:09]}  Nh4+ {[%clk 0:00:13]} 55. Kf2 {[%clk 0:00:08]}  Rxc6 {[%clk 0:00:13]} 56. Bb5 {[%clk 0:00:09]}  Rc3 {[%clk 0:00:13]} 57. a5 {[%clk 0:00:09]}  Ra3 {[%clk 0:00:14]} 58. a6 {[%clk 0:00:08]}  Ra2+ {[%clk 0:00:14]} 59. Kf1 {[%clk 0:00:08]}  Ke5 {[%clk 0:00:15]} 60. Bc4 {[%clk 0:00:08]}  Ra4 {[%clk 0:00:15]} 61. Bb5 {[%clk 0:00:08]}  Ra5 {[%clk 0:00:15]} 62. Bd3 {[%clk 0:00:08]}  Kd4 {[%clk 0:00:16]} 63. Be2 {[%clk 0:00:08]}  Ke3 {[%clk 0:00:16]} 64. Bc4 {[%clk 0:00:08]}  Ra1# {[%clk 0:00:16]} 0-1


[Site "https://www.chess.com"]

[Event "Titled Tuesday Blitz August 1 Early 2023"]
[White "Girya, Olga"]
[Black "Ai, Evan"]
[WhiteFideId "4195752"]
[BlackFideId "2094770"]
[WhiteElo "2495"]
[BlackElo "2303"]
[Result "0-1"]
[Round "3"]
[TimeControl "180+1"]
[Date "2023.08.01"]
[WhiteClock "0:00:03"]
[BlackClock "0:00:04"]
[Board "210"]

1. d4 {[%clk 0:03:00]}  Nf6 {[%clk 0:02:59]} 2. Nf3 {[%clk 0:03:00]}  e6 {[%clk 0:02:59]} 3. c4 {[%clk 0:03:00]}  d5 {[%clk 0:02:59]} 4. Nc3 {[%clk 0:02:59]}  Be7 {[%clk 0:02:58]} 5. Bf4 {[%clk 0:02:58]}  c6 {[%clk 0:02:55]} 6. e3 {[%clk 0:02:58]}  O-O {[%clk 0:02:55]} 7. h3 {[%clk 0:02:58]}  Nbd7 {[%clk 0:02:54]} 8. Qc2 {[%clk 0:02:58]}  dxc4 {[%clk 0:02:54]} 9. Bxc4 {[%clk 0:02:58]}  b5 {[%clk 0:02:54]} 10. Bd3 {[%clk 0:02:58]}  Bb7 {[%clk 0:02:53]} 11. Rd1 {[%clk 0:02:47]}  a6 {[%clk 0:02:49]} 12. Ne5 {[%clk 0:02:46]}  h6 {[%clk 0:02:44]} 13. O-O {[%clk 0:02:38]}  Qc8 {[%clk 0:02:33]} 14. Nxd7 {[%clk 0:02:30]}  Qxd7 {[%clk 0:02:34]} 15. Ne4 {[%clk 0:02:29]}  Nxe4 {[%clk 0:02:22]} 16. Bxe4 {[%clk 0:02:28]}  Rac8 {[%clk 0:02:21]} 17. a3 {[%clk 0:02:27]}  Ba8 {[%clk 0:01:48]} 18. Rd2 {[%clk 0:02:11]}  Qa7 {[%clk 0:01:45]} 19. Rc1 {[%clk 0:02:01]}  c5 {[%clk 0:01:45]} 20. d5 {[%clk 0:01:28]}  exd5 {[%clk 0:01:39]} 21. Bxd5 {[%clk 0:01:28]}  Bxd5 {[%clk 0:01:24]} 22. Rxd5 {[%clk 0:01:29]}  Rfd8 {[%clk 0:01:24]} 23. Rcd1 {[%clk 0:01:28]}  Rxd5 {[%clk 0:01:18]} 24. Rxd5 {[%clk 0:01:29]}  Rd8 {[%clk 0:01:18]} 25. e4 {[%clk 0:01:07]}  Rxd5 {[%clk 0:01:10]} 26. exd5 {[%clk 0:01:07]}  Qd7 {[%clk 0:01:10]} 27. d6 {[%clk 0:01:04]}  Bf6 {[%clk 0:01:03]} 28. Qxc5 {[%clk 0:01:01]}  Kf8 {[%clk 0:00:42]} 29. b4 {[%clk 0:00:38]}  g5 {[%clk 0:00:39]} 30. Be5 {[%clk 0:00:32]}  Bd8 {[%clk 0:00:33]} 31. Qd5 {[%clk 0:00:24]}  f6 {[%clk 0:00:20]} 32. Bd4 {[%clk 0:00:23]}  Kg7 {[%clk 0:00:16]} 33. Bc5 {[%clk 0:00:18]}  a5 {[%clk 0:00:12]} 34. Qe4 {[%clk 0:00:15]}  axb4 {[%clk 0:00:11]} 35. axb4 {[%clk 0:00:15]}  Qf7 {[%clk 0:00:07]} 36. Kh2 {[%clk 0:00:14]}  f5 {[%clk 0:00:05]} 37. Qe5+ {[%clk 0:00:13]}  Qf6 {[%clk 0:00:05]} 38. Qd5 {[%clk 0:00:07]}  Qf7 {[%clk 0:00:05]} 39. Qc6 {[%clk 0:00:06]}  Qe6 {[%clk 0:00:05]} 40. d7 {[%clk 0:00:03]}  Qxc6 {[%clk 0:00:04]} 0-1


[Site "https://www.chess.com"]

[Event "Titled Tuesday Blitz August 1 Early 2023"]
[White "Tikhonov, Viacheslav"]
[Black "Levitan, Caleb Levi"]
[WhiteFideId "44196407"]
[BlackFideId "14332620"]
[WhiteElo "2493"]
[BlackElo "2299"]
[Result "1-0"]
[Round "3"]
[TimeControl "180+1"]
[Date "2023.08.01"]
[WhiteClock "0:00:20"]
[BlackClock "0:00:01"]
[Board "212"]

1. e4 {[%clk 0:03:00]}  e5 {[%clk 0:02:59]} 2. Nf3 {[%clk 0:02:58]}  Nc6 {[%clk 0:02:59]} 3. Bc4 {[%clk 0:02:58]}  Bc5 {[%clk 0:02:58]} 4. O-O {[%clk 0:02:58]}  Nf6 {[%clk 0:02:58]} 5. d4 {[%clk 0:02:57]}  Bxd4 {[%clk 0:02:50]} 6. Nxd4 {[%clk 0:02:56]}  Nxd4 {[%clk 0:02:41]} 7. Be3 {[%clk 0:02:55]}  Nc6 {[%clk 0:02:35]} 8. f4 {[%clk 0:02:55]}  O-O {[%clk 0:02:33]} 9. Nc3 {[%clk 0:02:53]}  d6 {[%clk 0:02:30]} 10. f5 {[%clk 0:02:49]}  Na5 {[%clk 0:01:39]} 11. Be2 {[%clk 0:02:32]}  b6 {[%clk 0:01:24]} 12. Bg5 {[%clk 0:02:17]}  h6 {[%clk 0:01:21]} 13. Bh4 {[%clk 0:02:17]}  Bb7 {[%clk 0:01:21]} 14. b4 {[%clk 0:02:12]}  Nc6 {[%clk 0:01:20]} 15. Nd5 {[%clk 0:02:12]}  Nd4 {[%clk 0:01:15]} 16. Nxf6+ {[%clk 0:02:04]}  gxf6 {[%clk 0:01:16]} 17. c3 {[%clk 0:01:57]}  Nxe2+ {[%clk 0:01:09]} 18. Qxe2 {[%clk 0:01:58]}  Kh7 {[%clk 0:01:08]} 19. Rf3 {[%clk 0:01:34]}  Rg8 {[%clk 0:01:00]} 20. Rh3 {[%clk 0:01:33]}  d5 {[%clk 0:00:52]} 21. Qh5 {[%clk 0:01:27]}  Qf8 {[%clk 0:00:35]} 22. Bxf6 {[%clk 0:01:25]}  dxe4 {[%clk 0:00:30]} 23. Rd1 {[%clk 0:00:56]}  e3 {[%clk 0:00:25]} 24. Rd7 {[%clk 0:00:30]}  Rxg2+ {[%clk 0:00:19]} 25. Kf1 {[%clk 0:00:29]}  Kg8 {[%clk 0:00:03]} 26. Qxh6 {[%clk 0:00:20]}  Qxh6 {[%clk 0:00:03]} 27. Rxh6 {[%clk 0:00:20]}  e2+ {[%clk 0:00:03]} 28. Ke1 {[%clk 0:00:20]}  Rg1+ {[%clk 0:00:02]} 29. Kxe2 {[%clk 0:00:20]}  Ba6+ {[%clk 0:00:03]} 30. Kf2 {[%clk 0:00:20]}  Rf1+ {[%clk 0:00:03]} 31. Kg2 {[%clk 0:00:20]}  Rxf5 {[%clk 0:00:01]} 32. Rh8# {[%clk 0:00:20]} 1-0


[Site "https://www.chess.com"]

[Event "Titled Tuesday Blitz August 1 Early 2023"]
[White "Shohat, Yotam"]
[Black "Van den Dikkenberg, Erik"]
[WhiteFideId "2813955"]
[BlackFideId "1005880"]
[WhiteElo "2486"]
[BlackElo "2287"]
[Result "0-1"]
[Round "3"]
[TimeControl "180+1"]
[Date "2023.08.01"]
[WhiteClock "0:00:50"]
[BlackClock "0:01:29"]
[Board "213"]

1. d4 {[%clk 0:03:00]}  Nf6 {[%clk 0:02:54]} 2. Nc3 {[%clk 0:03:01]}  g6 {[%clk 0:02:55]} 3. Bf4 {[%clk 0:03:02]}  Bg7 {[%clk 0:02:56]} 4. e3 {[%clk 0:03:02]}  O-O {[%clk 0:02:56]} 5. h4 {[%clk 0:03:03]}  h5 {[%clk 0:02:55]} 6. Qf3 {[%clk 0:03:03]}  d6 {[%clk 0:02:54]} 7. Qg3 {[%clk 0:03:04]}  Nc6 {[%clk 0:02:52]} 8. Bd3 {[%clk 0:03:04]}  Ng4 {[%clk 0:02:44]} 9. f3 {[%clk 0:02:56]}  e5 {[%clk 0:02:37]} 10. Bg5 {[%clk 0:02:57]}  f6 {[%clk 0:02:37]} 11. fxg4 {[%clk 0:02:55]}  fxg5 {[%clk 0:02:36]} 12. gxh5 {[%clk 0:02:54]}  exd4 {[%clk 0:02:31]} 13. Ne4 {[%clk 0:02:40]}  dxe3 {[%clk 0:02:25]} 14. hxg5 {[%clk 0:02:33]}  Bf5 {[%clk 0:02:17]} 15. hxg6 {[%clk 0:02:14]}  Ne5 {[%clk 0:01:55]} 16. Nf6+ {[%clk 0:01:33]}  Rxf6 {[%clk 0:01:51]} 17. gxf6 {[%clk 0:01:32]}  Nxd3+ {[%clk 0:01:51]} 18. cxd3 {[%clk 0:01:32]}  Qxf6 {[%clk 0:01:51]} 19. Ne2 {[%clk 0:01:23]}  Bxd3 {[%clk 0:01:37]} 20. Nf4 {[%clk 0:01:20]}  Qxb2 {[%clk 0:01:32]} 21. Rd1 {[%clk 0:00:50]}  Qc3+ {[%clk 0:01:29]} 0-1


[Site "https://www.chess.com"]

[Event "Titled Tuesday Blitz August 1 Early 2023"]
[White "Gogolev, Artem"]
[Black "Fernandez Siles, Luis"]
[WhiteFideId "4116615"]
[BlackFideId "2209420"]
[WhiteElo "2466"]
[BlackElo "2282"]
[Result "0-1"]
[Round "3"]
[TimeControl "180+1"]
[Date "2023.08.01"]
[WhiteClock "0:00:06"]
[BlackClock "0:00:09"]
[Board "215"]

1. d4 {[%clk 0:03:00]}  Nf6 {[%clk 0:02:58]} 2. c4 {[%clk 0:03:00]}  g6 {[%clk 0:02:58]} 3. Nf3 {[%clk 0:02:59]}  Bg7 {[%clk 0:02:59]} 4. Nc3 {[%clk 0:02:59]}  O-O {[%clk 0:02:59]} 5. e4 {[%clk 0:02:59]}  d6 {[%clk 0:03:00]} 6. Be2 {[%clk 0:02:59]}  c5 {[%clk 0:03:00]} 7. O-O {[%clk 0:02:57]}  Nc6 {[%clk 0:03:00]} 8. d5 {[%clk 0:02:57]}  Na5 {[%clk 0:03:00]} 9. h3 {[%clk 0:02:41]}  e5 {[%clk 0:02:59]} 10. a3 {[%clk 0:02:19]}  b6 {[%clk 0:02:58]} 11. b4 {[%clk 0:02:18]}  Nb7 {[%clk 0:02:58]} 12. Ne1 {[%clk 0:02:12]}  Nd7 {[%clk 0:02:57]} 13. Be3 {[%clk 0:02:04]}  f5 {[%clk 0:02:56]} 14. exf5 {[%clk 0:01:33]}  gxf5 {[%clk 0:02:55]} 15. f4 {[%clk 0:01:33]}  exf4 {[%clk 0:02:52]} 16. Bd2 {[%clk 0:01:33]}  Ne5 {[%clk 0:02:49]} 17. Rc1 {[%clk 0:01:30]}  Ng6 {[%clk 0:02:42]} 18. Nd3 {[%clk 0:01:27]}  Qh4 {[%clk 0:02:11]} 19. Nxf4 {[%clk 0:01:20]}  Be5 {[%clk 0:02:06]} 20. Be1 {[%clk 0:00:36]}  Qg5 {[%clk 0:01:50]} 21. Nd3 {[%clk 0:00:16]}  Bd4+ {[%clk 0:01:36]} 22. Kh1 {[%clk 0:00:15]}  Bd7 {[%clk 0:01:26]} 23. Bd2 {[%clk 0:00:12]}  f4 {[%clk 0:01:18]} 24. Bf3 {[%clk 0:00:11]}  Rae8 {[%clk 0:01:13]} 25. Ne4 {[%clk 0:00:10]}  Qh6 {[%clk 0:00:53]} 26. Ndf2 {[%clk 0:00:10]}  Bf5 {[%clk 0:00:45]} 27. Bc3 {[%clk 0:00:07]}  Be3 {[%clk 0:00:32]} 28. Nf6+ {[%clk 0:00:07]}  Rxf6 {[%clk 0:00:32]} 29. Bxf6 {[%clk 0:00:08]}  Bxc1 {[%clk 0:00:18]} 30. Qxc1 {[%clk 0:00:09]}  Nd8 {[%clk 0:00:15]} 31. Ng4 {[%clk 0:00:08]}  Bxg4 {[%clk 0:00:15]} 32. Bxg4 {[%clk 0:00:09]}  Nf7 {[%clk 0:00:15]} 33. Ba1 {[%clk 0:00:10]}  Nfe5 {[%clk 0:00:14]} 34. Qc3 {[%clk 0:00:09]}  Nxg4 {[%clk 0:00:12]} 35. Rxf4 {[%clk 0:00:09]}  Nxf4 {[%clk 0:00:09]} 36. Kg1 {[%clk 0:00:07]}  Ne2+ {[%clk 0:00:08]} 37. Kf1 {[%clk 0:00:06]}  Nxc3 {[%clk 0:00:09]} 0-1


[Site "https://www.chess.com"]

[Event "Titled Tuesday Blitz August 1 Early 2023"]
[White "Yashmetov, Mikhail"]
[Black "Doluhanova, Evgeniya"]
[WhiteFideId "24198900"]
[BlackFideId "14112035"]
[WhiteElo "2449"]
[BlackElo "2274"]
[Result "1-0"]
[Round "3"]
[TimeControl "180+1"]
[Date "2023.08.01"]
[WhiteClock "0:00:41"]
[BlackClock "0:00:04"]
[Board "216"]

1. d4 {[%clk 0:03:00]}  Nf6 {[%clk 0:02:58]} 2. c4 {[%clk 0:03:00]}  e6 {[%clk 0:02:57]} 3. g3 {[%clk 0:03:00]}  d5 {[%clk 0:02:56]} 4. Bg2 {[%clk 0:02:59]}  Bb4+ {[%clk 0:02:54]} 5. Bd2 {[%clk 0:02:55]}  Be7 {[%clk 0:02:53]} 6. Nf3 {[%clk 0:02:55]}  O-O {[%clk 0:02:51]} 7. O-O {[%clk 0:02:55]}  c6 {[%clk 0:02:34]} 8. Qc2 {[%clk 0:02:50]}  Nbd7 {[%clk 0:02:30]} 9. Rd1 {[%clk 0:02:40]}  b6 {[%clk 0:02:28]} 10. b3 {[%clk 0:02:36]}  a5 {[%clk 0:02:21]} 11. Bc3 {[%clk 0:02:30]}  Ba6 {[%clk 0:02:01]} 12. Nbd2 {[%clk 0:02:25]}  Rc8 {[%clk 0:01:38]} 13. e4 {[%clk 0:02:24]}  dxe4 {[%clk 0:01:37]} 14. Nxe4 {[%clk 0:02:25]}  Nxe4 {[%clk 0:01:37]} 15. Qxe4 {[%clk 0:02:25]}  Bf6 {[%clk 0:01:36]} 16. Ne5 {[%clk 0:02:04]}  Bb7 {[%clk 0:01:04]} 17. Nxd7 {[%clk 0:01:37]}  Qxd7 {[%clk 0:00:55]} 18. c5 {[%clk 0:01:37]}  Qc7 {[%clk 0:00:42]} 19. Rac1 {[%clk 0:01:22]}  b5 {[%clk 0:00:41]} 20. Qf3 {[%clk 0:00:49]}  Rfd8 {[%clk 0:00:40]} 21. d5 {[%clk 0:00:41]}  cxd5 {[%clk 0:00:20]} 22. Bxf6 {[%clk 0:00:40]}  gxf6 {[%clk 0:00:20]} 23. Qxf6 {[%clk 0:00:41]}  Re8 {[%clk 0:00:04]} 24. Rd4 {[%clk 0:00:41]} 1-0


[Site "https://www.chess.com"]

[Event "Titled Tuesday Blitz August 1 Early 2023"]
[White "Clawitter, Craig"]
[Black "Federzoni, Enzo"]
[WhiteFideId "2023105"]
[BlackFideId "2173301"]
[WhiteElo "2256"]
[BlackElo "2404"]
[Result "0-1"]
[Round "3"]
[TimeControl "180+1"]
[Date "2023.08.01"]
[WhiteClock "0:00:00"]
[BlackClock "0:00:57"]
[Board "224"]

1. e4 {[%clk 0:02:57]}  e5 {[%clk 0:02:59]} 2. Nf3 {[%clk 0:02:56]}  Nc6 {[%clk 0:03:00]} 3. Bb5 {[%clk 0:02:56]}  a6 {[%clk 0:03:00]} 4. Ba4 {[%clk 0:02:57]}  Nf6 {[%clk 0:03:00]} 5. O-O {[%clk 0:02:58]}  b5 {[%clk 0:03:01]} 6. Bb3 {[%clk 0:02:57]}  Bc5 {[%clk 0:03:02]} 7. c3 {[%clk 0:02:57]}  d6 {[%clk 0:03:02]} 8. a4 {[%clk 0:02:56]}  Rb8 {[%clk 0:03:01]} 9. d4 {[%clk 0:02:37]}  Bb6 {[%clk 0:02:59]} 10. axb5 {[%clk 0:02:36]}  axb5 {[%clk 0:02:59]} 11. Na3 {[%clk 0:02:37]}  O-O {[%clk 0:02:58]} 12. Nxb5 {[%clk 0:02:37]}  Bg4 {[%clk 0:02:58]} 13. Re1 {[%clk 0:02:33]}  Bxf3 {[%clk 0:02:55]} 14. gxf3 {[%clk 0:02:32]}  Nh5 {[%clk 0:02:34]} 15. Kh1 {[%clk 0:02:25]}  Qh4 {[%clk 0:02:26]} 16. Be3 {[%clk 0:02:22]}  exd4 {[%clk 0:02:05]} 17. cxd4 {[%clk 0:02:14]}  Ba5 {[%clk 0:02:02]} 18. Nc3 {[%clk 0:01:56]}  Qh3 {[%clk 0:02:02]} 19. Bd5 {[%clk 0:01:17]}  Bxc3 {[%clk 0:02:01]} 20. bxc3 {[%clk 0:01:17]}  Ne7 {[%clk 0:02:01]} 21. Bc4 {[%clk 0:00:59]}  Ng6 {[%clk 0:01:56]} 22. Rg1 {[%clk 0:00:45]}  Nh4 {[%clk 0:01:36]} 23. Be2 {[%clk 0:00:08]}  f5 {[%clk 0:01:00]} 24. Qf1 {[%clk 0:00:05]}  Qxf1 {[%clk 0:00:56]} 25. Raxf1 {[%clk 0:00:00]}  f4 {[%clk 0:00:57]} 0-1


[Site "https://www.chess.com"]